bitfinex-derivatives/quotes_SOLF0:USTF0_20240830
["timestamp","ask_amount","ask_price","bid_price","bid_amount"]
[1725045967202,3.6592,136.65,136.63,3.6596]
[1725045967503,3.57822332,136.64,136.63,0.05309247]
[1725045968902,3.70638156,136.65,136.63,0.05309247]
[1725045969104,0.04718156,136.65,136.63,3.71259247]
[1725045969547,0.04718156,136.65,136.64,3.6594]
[1725045970099,0.04718156,136.65,136.63,3.71259247]
[1725045971509,28.11718156,136.65,136.63,0.05309247]
[1725045972108,3.6594,136.64,136.63,0.05309247]
[1725045972402,7.31518808,136.64,136.63,0.05309247]
[1725045973303,3.6599,136.62,136.57,3.9257]
[1725045973503,35.372,136.67,136.57,3.9257]
[1725045973504,28.07,136.61,136.57,2.6282]
[1725045973707,3.73179836,136.6,136.58,3.6609]
[1725045974205,3.78312273,136.6,136.58,3.70852452]
[1725045975803,0.05132437,136.6,136.58,3.70852452]
[1725045975999,3.71182437,136.6,136.58,3.70852452]
[1725045979794,3.6607,136.59,136.58,0.04762452]
[1725045980001,3.6607,136.59,136.58,5.06373377]
[1725045980203,3.6607,136.59,136.58,0.04762452]
[1725045986609,28.12132437,136.6,136.58,0.04762452]
[1725045987106,0.05132437,136.6,136.58,3.70852452]
[1725045988809,3.71182437,136.6,136.58,3.70852452]
[1725045991005,0.05132437,136.6,136.59,3.6607]
[1725045991307,0.05132437,136.6,136.58,0.04762452]
[1725045991703,0.05132437,136.6,136.59,3.6607]
[1725045992012,3.68238049,136.63,136.58,0.04762452]
[1725045992206,28.07,136.65,136.57,1.3336]
[1725045992505,3.65859014,136.64,136.62,3.6598]
[1725045993112,3.71345006,136.64,136.62,3.71469112]
[1725045993915,7.37285006,136.64,136.62,3.71469112]
[1725045994107,11.24,136.63,136.62,0.05489112]
[1725045995107,14.8997,136.63,136.62,0.05489112]
[1725045996013,3.6597,136.63,136.62,0.05489112]
[1725046000005,7.37295006,136.64,136.62,0.05489112]
[1725046000211,3.71345006,136.64,136.62,3.71469112]
[1725046001020,7.37295006,136.64,136.62,0.05489112]
[1725046001406,3.71345006,136.64,136.62,3.71459112]
[1725046002213,7.37285006,136.64,136.62,3.71459112]
[1725046002610,3.71345006,136.64,136.62,0.05489112]
[1725046003053,31.7697,136.63,136.62,0.05489112]
[1725046003215,3.6597,136.63,136.62,0.05489112]
[1725046003514,31.7697,136.63,136.62,0.05489112]
[1725046004714,3.66,136.62,136.59,3.6607]
[1725046004914,28.11,136.61,136.58,4.9699]
[1725046005306,28.11,136.61,136.58,1.309]
[1725046005307,3.6606,136.6,136.58,1.309]
[1725046005710,3.6606,136.6,136.58,1.36429521]
[1725046005916,31.7707,136.59,136.58,0.05529521]
[1725046011025,28.11,136.59,136.58,0.05529521]
[1725046011625,31.7707,136.59,136.58,0.05529521]
[1725046013627,3.6616,136.56,136.53,3.6622]
[1725046014428,7.276062,136.56,136.53,3.6622]
[1725046014727,7.32841227,136.56,136.53,3.71627803]
[1725046015830,3.6618,136.55,136.53,3.71627803]
[1725046016221,3.66681227,136.56,136.53,0.05407803]
[1725046016421,3.662,136.55,136.53,0.05407803]
[1725046016816,3.66681227,136.56,136.53,0.05407803]
[1725046017017,3.6621,136.54,136.53,0.05407803]
[1725046020122,14.9221,136.54,136.53,0.05407803]
[1725046023630,3.6619,136.55,136.53,0.05407803]
[1725046023850,3.66681227,136.56,136.53,0.05407803]
[1725046024229,3.66681227,136.56,136.54,3.6619]
[1725046024731,0.05235027,136.56,136.54,3.6619]
[1725046025033,3.7337044,136.57,136.53,0.05407803]
[1725046025244,11.26,136.58,136.53,0.05407803]
[1725046025536,11.26,136.57,136.54,3.6619]
[1725046025829,3.71732923,136.56,136.54,3.71453253]
[1725046027636,0.05591781,136.57,136.55,3.6617]
[1725046027837,0.05591781,136.57,136.54,0.05263253]
[1725046028335,0.05591781,136.57,136.56,3.6615]
[1725046031040,3.6542716,136.57,136.56,3.6615]
[1725046033239,3.6605,136.6,136.58,3.661]
[1725046033837,7.31825988,136.6,136.57,3.661]
[1725046034244,7.36427517,136.6,136.57,3.70798301]
[1725046036539,3.70377517,136.6,136.57,0.04698301]
[1725046036742,3.661,136.58,136.57,0.04698301]
[1725046037333,3.6609,136.59,136.57,0.04698301]
[1725046037939,31.83377517,136.6,136.57,0.04698301]
[1725046037940,3.661,136.58,136.57,0.04698301]
[1725046039644,3.6608,136.59,136.57,0.04698301]
[1725046039849,3.70377517,136.6,136.57,0.04698301]
[1725046040143,0.04601529,136.6,136.57,3.70798301]
[1725046040347,0.04601529,136.6,136.57,0.04698301]
[1725046040540,3.66696601,136.6,136.57,0.04698301]
[1725046040740,3.70651529,136.6,136.57,0.04698301]
[1725046040942,3.73360029,136.6,136.57,0.04698301]
[1725046041378,3.6609,136.59,136.57,0.04698301]
[1725046041543,3.73360029,136.6,136.57,0.04698301]
[1725046042163,3.661,136.58,136.57,0.04698301]
[1725046049556,3.6622,136.54,136.51,7.6867]
[1725046049757,3.72473637,136.53,136.51,7.6867]
[1725046050059,3.6622,136.54,136.52,3.6626]
[1725046050649,3.71797822,136.54,136.52,3.71707759]
[1725046052654,0.05577822,136.54,136.52,0.05447759]
[1725046053156,0.05577822,136.54,136.53,3.6623]
[1725046053457,28.13,136.59,136.53,3.6623]
[1725046053763,3.59475018,136.59,136.52,28.13]
[1725046054073,28.13,136.62,136.53,28.13]
[1725046054356,3.71362754,136.59,136.56,0.0529904]
[1725046054565,0.05272754,136.59,136.56,0.0529904]
[1725046055061,0.05272754,136.59,136.58,3.661]
[1725046055856,0.05272754,136.59,136.57,4.9641]
[1725046057762,3.71362754,136.59,136.57,1.3029]
[1725046058354,3.661,136.58,136.56,3.7143904]
[1725046058554,0.05272754,136.59,136.56,3.7143904]
[1725046058856,3.71362754,136.59,136.56,3.7143904]
[1725046059275,0.05272754,136.59,136.56,0.0529904]
[1725046059559,3.6611,136.58,136.56,0.0529904]
[1725046060561,0.05272754,136.59,136.56,0.0529904]
[1725046060862,3.6613,136.57,136.56,0.0529904]
[1725046061052,0.05272754,136.59,136.56,0.0529904]
[1725046062360,3.6611,136.58,136.56,3.7144904]
[1725046063356,3.6613,136.57,136.56,0.0529904]
[1725046063953,10.9903,136.57,136.56,0.0529904]
[1725046064160,39.1203,136.57,136.56,0.0529904]
[1725046065168,3.6621,136.54,136.48,28.13]
[1725046065411,3.6621,136.54,136.49,2.6577]
[1725046065566,3.6621,136.54,136.51,3.6627]
[1725046065759,28.13,136.55,136.49,2.6577]
[1725046065961,3.6623,136.53,136.49,2.6577]
[1725046066160,7.27263317,136.53,136.5,3.663]
[1725046066461,7.31931989,136.53,136.5,3.71360593]
[1725046067165,3.6626,136.52,136.5,0.05060593]
[1725046070260,3.6629,136.51,136.5,0.05060593]
[1725046077483,14.9027,136.52,136.5,3.71370593]
[1725046077680,3.6627,136.52,136.5,3.71370593]
[1725046081486,3.65701989,136.53,136.5,0.05060593]
[1725046082083,0.04668672,136.53,136.5,0.05060593]
[1725046082486,18.53926226,136.56,136.54,3.662]
[1725046082784,14.9017,136.56,136.5,11.24]
[1725046083215,18.50337008,136.56,136.53,3.6622]
[1725046083380,3.6618,136.55,136.5,11.24]
[1725046083580,0.04618519,136.54,136.51,0.04898259]
[1725046083783,0.04618519,136.54,136.52,3.6626]
[1725046085081,0.04618519,136.54,136.53,3.6623]
[1725046087883,0.04618519,136.54,136.51,0.04898259]
[1725046088288,0.04618519,136.54,136.52,3.6624]
[1725046088588,0.04618519,136.54,136.51,0.04898259]
[1725046089188,0.04618519,136.54,136.53,3.6623]
[1725046090685,0.04618519,136.54,136.51,0.04898259]
[1725046090894,11.28618519,136.54,136.51,0.04898259]
[1725046091189,11.24,136.53,136.51,0.04898259]
[1725046092184,3.6626,136.52,136.51,0.04898259]
[1725046092796,11.24,136.53,136.51,0.04898259]
[1725046093190,3.70838519,136.54,136.51,0.04898259]
[1725046093387,11.28618519,136.54,136.51,0.04898259]
[1725046093584,11.24,136.53,136.51,0.04898259]
[1725046093787,14.9026,136.53,136.51,0.04898259]
[1725046093990,11.24,136.53,136.51,0.04898259]
[1725046095389,3.6626,136.52,136.51,0.04898259]
[1725046099506,0.04618519,136.54,136.51,0.04898259]
[1725046100092,0.04618519,136.54,136.52,3.6624]
[1725046100497,0.04618519,136.54,136.51,0.04898259]
[1725046100695,0.04618519,136.54,136.51,11.28898259]
[1725046101201,0.04618519,136.54,136.51,1.41968259]
[1725046101402,11.28618519,136.54,136.51,0.04898259]
[1725046101915,11.24,136.53,136.51,0.04898259]
[1725046102304,3.6626,136.52,136.51,0.04898259]
[1725046103808,14.9025,136.53,136.51,0.04898259]
[1725046104122,0.04618519,136.54,136.53,3.6623]
[1725046105506,0.04618519,136.54,136.52,2.7858]
[1725046105900,0.04618519,136.54,136.52,6.4482]
[1725046106213,0.04618519,136.54,136.51,0.04898259]
[1725046106594,3.6625,136.53,136.51,0.04898259]
[1725046106794,0.04618519,136.54,136.51,0.04898259]
[1725046106795,28.18618519,136.54,136.51,0.04898259]
[1725046107199,3.6626,136.52,136.51,0.04898259]
[1725046110007,0.04618519,136.54,136.51,0.04898259]
[1725046111013,0.04618519,136.54,136.52,3.6626]
[1725046111311,0.04618519,136.54,136.51,0.04898259]
[1725046111707,0.04618519,136.54,136.52,3.6624]
[1725046111904,0.04618519,136.54,136.51,0.04898259]
[1725046112507,3.6614,136.57,136.54,3.662]
[1725046112712,28.14,136.6,136.51,28.18898259]
[1725046112713,28.14,136.6,136.51,28.14]
[1725046112911,28.14,136.61,136.52,29.5544]
[1725046113117,3.6609,136.59,136.53,1.4241]
[1725046113516,0.04854929,136.57,136.56,3.6615]
[1725046114605,3.70984929,136.57,136.55,0.04659341]
[1725046114804,0.04854929,136.57,136.55,0.04659341]
[1725046115616,0.04854929,136.57,136.55,3.70839341]
[1725046119209,0.04854929,136.57,136.56,3.6615]
[1725046119414,3.6605,136.6,136.55,0.04659341]
[1725046119813,3.6605,136.6,136.57,3.6612]
[1725046120315,3.71008486,136.6,136.57,3.6612]
[1725046120912,0.04958486,136.6,136.58,3.6608]
[1725046121713,0.04958486,136.6,136.59,3.6607]
[1725046129425,0.04958486,136.6,136.58,3.7088436]
[1725046129926,3.6607,136.59,136.58,0.0479436]
[1725046140026,0.04958486,136.6,136.58,0.0479436]
[1725046140231,3.71018486,136.6,136.58,0.0479436]
[1725046141235,0.04958486,136.6,136.58,3.7089436]
[1725046141933,3.71008486,136.6,136.58,3.7089436]
[1725046142637,3.71008486,136.6,136.58,0.0479436]
[1725046144128,3.6607,136.59,136.58,0.0479436]
[1725046160236,14.9107,136.59,136.58,0.0479436]
[1725046170844,3.662,136.55,136.53,2.7378]
[1725046171042,14.93255362,136.56,136.53,2.7378]
[1725046171243,11.25,136.56,136.53,2.7378]
[1725046171846,3.6618,136.55,136.53,2.79173409]
[1725046172349,3.6621,136.54,136.53,0.05393409]
[1725046175844,14.9121,136.54,136.53,0.05393409]
[1725046177150,3.6621,136.54,136.53,0.05393409]
[1725046177360,3.6619,136.55,136.53,0.05393409]
[1725046177654,15.03939561,136.56,136.53,0.05393409]
[1725046177655,3.78939561,136.56,136.53,0.05393409]
[1725046178271,3.662,136.55,136.53,0.05393409]
[1725046178646,3.6618,136.55,136.53,0.05393409]
[1725046179247,15.03939561,136.56,136.53,0.05393409]
[1725046179451,3.6621,136.54,136.53,0.05393409]
[1725046180450,3.6618,136.55,136.53,0.05393409]
[1725046180652,15.03939561,136.56,136.53,0.05393409]
[1725046181556,3.662,136.55,136.53,0.05393409]
[1725046181946,15.03939561,136.56,136.53,0.05393409]
[1725046182357,3.6621,136.54,136.53,0.05393409]
[1725046186451,3.6619,136.55,136.53,0.05393409]
[1725046187357,3.6621,136.54,136.53,0.05393409]
[1725046192069,3.662,136.55,136.53,0.05393409]
[1725046195262,0.0522992,136.56,136.53,0.05393409]
[1725046195459,0.0522992,136.56,136.53,2.82743409]
[1725046195863,0.0522992,136.56,136.54,3.6619]
[1725046196269,0.0522992,136.56,136.55,3.6618]
[1725046198368,0.0522992,136.56,136.54,3.6619]
[1725046199657,3.7138992,136.56,136.54,3.6619]
[1725046200570,0.0522992,136.56,136.53,6.48973409]
[1725046201964,3.6619,136.55,136.53,6.48973409]
[1725046202872,3.7139992,136.56,136.54,3.662]
[1725046203259,228.0,136.7,136.58,3.6608]
[1725046203462,11.25,136.65,136.59,11.25]
[1725046203673,14.89721388,136.65,136.59,11.25]
[1725046203866,3.64721388,136.65,136.59,11.25]
[1725046204068,3.64721388,136.65,136.54,1.3971]
[1725046204069,11.25,136.68,136.61,11.25]
[1725046204261,0.05481178,136.66,136.63,0.05471253]
[1725046204476,0.05481178,136.66,136.63,0.04955751]
[1725046204477,0.05396892,136.66,136.63,0.04955751]
[1725046204661,3.76975548,136.66,136.63,1.39985751]
[1725046204876,0.05396892,136.66,136.63,1.39985751]
[1725046205069,3.71296892,136.66,136.63,1.39985751]
[1725046205271,0.05396892,136.66,136.63,1.39985751]
[1725046205571,14.9094,136.64,136.63,0.04955751]
[1725046205766,18.52123823,136.64,136.63,0.04955751]
[1725046207769,14.86183823,136.64,136.56,5.0116]
[1725046207978,11.25,136.61,136.56,1.3503]
[1725046208273,14.9109,136.59,136.56,1.3503]
[1725046208671,11.25,136.58,136.52,11.25]
[1725046208973,3.6614,136.57,136.56,0.05530898]
[1725046209182,14.9114,136.57,136.56,0.05530898]
[1725046209566,3.6614,136.57,136.56,0.05530898]
[1725046210075,3.6612,136.58,136.56,0.05530898]
[1725046210479,0.0544022,136.59,136.56,0.05530898]
[1725046210673,0.0544022,136.59,136.57,3.6611]
[1725046210868,0.0544022,136.59,136.57,2.813]
[1725046211074,28.13,136.65,136.57,2.813]
[1725046211272,28.13,136.65,136.57,4.2194]
[1725046211772,3.6598,136.63,136.57,32.3494]
[1725046211973,3.67906743,136.65,136.59,28.13]
[1725046212169,0.04863976,136.63,136.61,0.04789336]
[1725046214183,3.70833976,136.63,136.61,0.04789336]
[1725046214684,3.6599,136.62,136.61,0.04789336]
[1725046217083,3.70833976,136.63,136.61,0.04789336]
[1725046218376,0.04863976,136.63,136.62,3.6599]
[1725046218580,89.40656407,136.67,136.61,28.17789336]
[1725046218784,89.40656407,136.67,136.62,1.3608]
[1725046219379,3.659,136.66,136.63,3.6595]
[1725046219586,3.70612554,136.66,136.63,3.6595]
[1725046221088,0.04712554,136.66,136.64,3.6593]
[1725046221288,0.04712554,136.66,136.62,1.3608]
[1725046221891,0.04712554,136.66,136.64,3.6593]
[1725046222490,3.70602554,136.66,136.63,3.6595]
[1725046222995,0.04712554,136.66,136.63,3.6595]
[1725046223290,3.70622554,136.66,136.63,3.6595]
[1725046223889,3.6593,136.65,136.62,5.0206]
[1725046224494,3.6594,136.64,136.62,5.0206]
[1725046224691,28.13,136.65,136.61,0.04789336]
[1725046225091,3.6599,136.62,136.61,0.04789336]
[1725046229303,3.6609,136.59,136.54,4.1269]
[1725046229532,28.13,136.63,136.55,3.6616]
[1725046229703,28.13,136.61,136.54,2.7858]
[1725046229894,28.13,136.61,136.54,1.3736]
[1725046230293,3.6614,136.57,136.56,0.04962398]
[1725046230512,7.26880419,136.57,136.56,0.04962398]
[1725046233503,7.26880419,136.57,136.5,1.4278]
[1725046233504,3.6624,136.53,136.5,1.4278]
[1725046234609,3.71026227,136.53,136.5,1.4750927]
[1725046235407,3.71026227,136.53,136.5,5.1380927]
[1725046236214,3.6627,136.52,136.5,5.1380927]
[1725046236406,3.6627,136.52,136.5,1.4750927]
[1725046237212,3.6627,136.52,136.5,0.0472927]
[1725046237407,3.6627,136.52,136.5,3.7103927]
[1725046237810,0.04786227,136.53,136.5,0.0472927]
[1725046238215,3.6627,136.52,136.5,0.0472927]
[1725046239116,3.6627,136.52,136.5,3.7103927]
[1725046240515,3.6627,136.52,136.5,0.0472927]
[1725046241115,3.6626,136.52,136.5,0.0472927]
[1725046241316,0.04786227,136.53,136.5,0.0472927]
[1725046241716,3.6629,136.51,136.5,0.0472927]
[1725046242215,14.9129,136.51,136.5,0.0472927]
[1725046243817,14.9129,136.51,136.41,1.3917]
[1725046243818,11.25,136.51,136.41,1.3917]
[1725046244016,28.13,136.49,136.41,2.7475]
[1725046244314,28.13,136.49,136.43,3.6649]
[1725046244515,35.459,136.51,136.42,28.13]
[1725046244910,3.6641,136.47,136.45,0.048835]
[1725046245110,0.05429524,136.48,136.45,0.048835]
[1725046245315,3.6641,136.47,136.45,0.048835]
[1725046246520,0.05429524,136.48,136.45,0.048835]
[1725046246521,3.6642,136.46,136.45,0.048835]
[1725046248418,0.05429524,136.48,136.45,0.048835]
[1725046249120,3.6642,136.47,136.45,0.048835]
[1725046249520,0.05429524,136.48,136.45,0.048835]
[1725046250318,3.6639,136.47,136.45,0.048835]
[1725046251322,3.71799524,136.48,136.45,3.713335]
[1725046252322,0.05429524,136.48,136.45,0.048835]
[1725046252519,3.66937547,136.48,136.45,0.048835]
[1725046253318,7.33317547,136.48,136.45,3.713235]
[1725046254622,3.664,136.47,136.45,3.713235]
[1725046254825,3.66937547,136.48,136.45,3.713235]
[1725046255325,7.33327547,136.48,136.45,3.713235]
[1725046255726,7.33327547,136.48,136.46,3.6642]
[1725046255942,7.33327547,136.48,136.45,0.048835]
[1725046255943,0.05429524,136.48,136.45,0.048835]
[1725046257624,0.05429524,136.48,136.46,3.664]
[1725046257828,0.05429524,136.48,136.45,0.048835]
[1725046258026,0.05429524,136.48,136.47,3.6639]
[1725046259225,29.5467,136.55,136.46,2.7336]
[1725046259530,28.13,136.56,136.47,28.13]
[1725046259719,3.6624,136.53,136.47,28.13]
[1725046260023,28.13,136.56,136.47,28.13]
[1725046260331,0.05551149,136.53,136.51,3.6627]
[1725046262728,0.05551149,136.53,136.52,3.6626]
[1725046263337,0.05551149,136.53,136.51,3.6627]
[1725046264940,0.05551149,136.53,136.51,3.6629]
[1725046265234,0.05551149,136.53,136.5,0.04973976]
[1725046265435,0.05551149,136.53,136.51,3.6627]
[1725046265837,0.05551149,136.53,136.5,0.04973976]
[1725046267040,28.18551149,136.53,136.5,0.04973976]
[1725046267627,3.6629,136.51,136.5,0.04973976]
[1725046267822,0.05551149,136.53,136.5,0.04973976]
[1725046268029,3.6629,136.51,136.5,0.04973976]
[1725046272834,3.6639,136.48,136.44,3.6646]
[1725046273034,3.67958391,136.47,136.44,3.6646]
[1725046273833,3.71107402,136.47,136.44,3.71368198]
[1725046274037,3.65340322,136.47,136.44,0.04908198]
[1725046274741,3.6645,136.45,136.44,0.04908198]
[1725046286339,31.7945,136.45,136.44,0.04908198]
[1725046286550,28.13,136.45,136.39,4.77310811]
[1725046286745,28.13,136.42,136.39,4.77310811]
[1725046286936,28.13,136.42,136.38,6.03747107]
[1725046286937,28.13,136.42,136.38,2.6491]
[1725046287143,1.391,136.46,136.37,3.38837107]
[1725046287444,0.05165701,136.43,136.4,0.05588765]
[1725046287644,31.7956,136.41,136.4,0.05588765]
[1725046287840,3.6656,136.41,136.4,0.05588765]
[1725046289048,28.13,136.42,136.4,0.05588765]
[1725046289238,0.05165701,136.43,136.4,0.05588765]
[1725046290355,0.05165701,136.43,136.4,3.72158765]
[1725046290541,0.05165701,136.43,136.4,0.05588765]
[1725046291143,0.05165701,136.43,136.41,3.6654]
[1725046291850,0.05165701,136.43,136.42,3.6653]
[1725046292548,0.05165701,136.43,136.41,3.6655]
[1725046296251,0.05165701,136.43,136.4,0.05588765]
[1725046296845,0.05165701,136.43,136.41,3.6654]
[1725046297051,0.05165701,136.43,136.4,0.05588765]
[1725046297445,0.05165701,136.43,136.41,3.6655]
[1725046298446,0.05165701,136.43,136.42,3.6653]
[1725046302160,0.05165701,136.43,136.4,0.05588765]
[1725046302904,0.05165701,136.43,136.42,3.6653]
[1725046303056,3.6063292,136.47,136.4,28.13]
[1725046303349,3.6641,136.47,136.44,3.6645]
[1725046303558,7.28777167,136.47,136.44,3.6645]
[1725046303950,3.65701722,136.48,136.43,28.13]
[1725046304148,0.0557746,136.47,136.44,1.40892727]
[1725046304353,3.6629,136.51,136.48,3.6636]
[1725046304858,28.13,136.55,136.48,3.6636]
[1725046305058,3.663,136.51,136.48,3.6636]
[1725046305273,3.71570399,136.51,136.48,3.7150302]
[1725046306557,0.05270399,136.51,136.48,0.0514302]
[1725046307761,3.71580399,136.51,136.48,0.0514302]
[1725046308279,3.66739926,136.5,136.48,0.0514302]
[1725046308462,0.05270399,136.51,136.48,0.0514302]
[1725046309173,3.6633,136.5,136.48,0.0514302]
[1725046309373,31.80252747,136.5,136.48,0.0514302]
[1725046309569,31.80252747,136.5,136.41,1.4059]
[1725046309570,31.80252747,136.5,136.42,3.6652]
[1725046309771,28.13,136.47,136.42,3.6652]
[1725046310072,3.6645,136.46,136.42,3.6652]
[1725046310572,0.05544496,136.45,136.43,0.05399786]
[1725046311296,3.6647,136.44,136.43,0.05399786]
[1725046311883,3.72004496,136.45,136.43,0.05399786]
[1725046313880,3.6647,136.44,136.43,0.05399786]
[1725046320374,3.6659,136.4,136.37,1.3226]
[1725046320773,7.33401499,136.39,136.37,1.3226]
[1725046321471,7.38334006,136.39,136.37,1.37893681]
[1725046321669,7.38334006,136.39,136.37,5.04553681]
[1725046322285,3.71552507,136.39,136.37,5.04553681]
[1725046323675,3.6664,136.38,136.37,1.37893681]
[1725046324382,3.71562507,136.39,136.37,5.04553681]
[1725046324580,0.04932507,136.39,136.37,5.04553681]
[1725046325083,3.71552507,136.39,136.37,5.04553681]
[1725046325905,0.04932507,136.39,136.37,5.04543681]
[1725046326784,3.71542507,136.39,136.37,5.04543681]
[1725046328282,7.30689656,136.39,136.37,1.37893681]
[1725046328476,7.30689656,136.39,136.37,0.05633681]
[1725046328684,14.90069656,136.39,136.37,0.05633681]
[1725046329685,3.6664,136.38,136.37,0.05633681]
[1725046331581,3.71542507,136.39,136.37,0.05633681]
[1725046332381,3.71542507,136.39,136.37,3.72293681]
[1725046332581,0.04932507,136.39,136.37,0.05633681]
[1725046332781,0.04932507,136.39,136.37,1.35283681]
[1725046332982,0.04932507,136.39,136.38,3.6664]
[1725046334881,84.49121835,136.48,136.38,11.26]
[1725046335081,84.49121835,136.48,136.39,11.26]
[1725046335082,11.26,136.45,136.39,11.26]
[1725046335279,14.9246,136.45,136.39,11.26]
[1725046335480,14.9246,136.45,136.42,3.6653]
[1725046335988,11.30883325,136.45,136.42,0.0478216]
[1725046336390,11.30883325,136.45,136.42,3.7128216]
[1725046336587,0.04883325,136.45,136.42,0.0478216]
[1725046336923,0.04883325,136.45,136.42,12.7158216]
[1725046337083,0.04883325,136.45,136.43,3.665]
[1725046337281,0.04883325,136.45,136.42,1.4558216]
[1725046338488,0.04883325,136.45,136.43,3.6648]
[1725046338682,0.04883325,136.45,136.42,1.4558216]
[1725046339190,3.71343325,136.45,136.42,5.1209216]
[1725046339787,3.71343325,136.45,136.43,3.665]
[1725046340094,0.04883325,136.45,136.42,2.8268216]
[1725046340688,0.04883325,136.45,136.44,3.6647]
[1725046341086,0.04883325,136.45,136.42,2.8268216]
[1725046341288,0.04883325,136.45,136.43,3.6648]
[1725046342586,3.71343325,136.45,136.42,6.4920216]
[1725046344287,11.26,136.44,136.42,0.0478216]
[1725046344493,3.6834989,136.43,136.42,0.0478216]
[1725046344994,7.3484989,136.43,136.42,0.0478216]
[1725046345195,14.925,136.43,136.42,0.0478216]
[1725046345796,18.51468913,136.43,136.42,0.0478216]
[1725046349399,7.25468913,136.43,136.42,0.0478216]
[1725046350192,18.51468913,136.43,136.42,0.0478216]
[1725046350396,3.6662,136.39,136.37,2.7713]
[1725046351599,3.71520573,136.39,136.37,2.81764469]
[1725046351899,3.6664,136.38,136.37,0.04634469]
[1725046357118,14.9264,136.38,136.37,0.04634469]
[1725046357710,14.9264,136.38,136.3,13.55348429]
[1725046357711,11.26,136.38,136.3,13.55348429]
[1725046358014,3.6685,136.3,136.28,3.38837107]
[1725046358204,15.01733137,136.29,136.27,15.33324632]
[1725046358458,11.26,136.29,136.26,6.16687107]
[1725046358606,0.04952291,136.29,136.26,6.22010508]
[1725046358911,0.04952291,136.29,136.26,2.83173401]
[1725046359106,0.04952291,136.29,136.26,6.50113401]
[1725046359311,0.04952291,136.29,136.26,2.83173401]
[1725046359818,0.04952291,136.29,136.27,3.6692]
[1725046360410,0.04952291,136.29,136.26,2.83173401]
[1725046360802,0.04952291,136.29,136.28,3.6691]
[1725046362918,0.04952291,136.29,136.26,2.83173401]
[1725046364115,0.04952291,136.29,136.28,3.6691]
[1725046366840,28.16,136.33,136.26,2.83173401]
[1725046367035,3.6676,136.34,136.26,30.99173401]
[1725046367429,3.6676,136.34,136.31,3.6682]
[1725046367935,3.72123176,136.34,136.31,3.72074352]
[1725046368333,0.05363176,136.34,136.31,0.05254352]
[1725046368831,0.05363176,136.34,136.32,3.6678]
[1725046370038,0.05363176,136.34,136.33,3.6677]
[1725046370335,3.66642228,136.38,136.32,28.16]
[1725046370535,3.6662,136.39,136.35,3.6669]
[1725046370732,3.6662,136.39,136.33,1.3615]
[1725046370941,31.73974921,136.41,136.33,1.3615]
[1725046371238,3.57974921,136.41,136.34,28.16]
[1725046371440,0.05329498,136.39,136.36,0.05482065]
[1725046371632,0.05329498,136.39,136.37,3.6664]
[1725046372737,0.05329498,136.39,136.38,3.6664]
[1725046373074,0.05329498,136.39,136.36,0.05482065]
[1725046374148,0.05329498,136.39,136.37,3.6665]
[1725046377346,3.71939498,136.39,136.37,3.6665]
[1725046378447,0.05329498,136.39,136.37,3.6665]
[1725046380040,3.71939498,136.39,136.37,3.6665]
[1725046380240,3.71939498,136.39,136.36,3.72162065]
[1725046380546,3.71939498,136.39,136.36,0.05482065]
[1725046380547,28.21329498,136.39,136.36,0.05482065]
[1725046381240,3.6665,136.38,136.36,0.05482065]
[1725046382240,28.21329498,136.39,136.36,0.05482065]
[1725046382241,3.6666,136.37,136.36,0.05482065]
[1725046389545,31.8266,136.37,136.36,0.05482065]
[1725046390143,14.9366,136.37,136.36,0.05482065]
[1725046391449,3.6677,136.33,136.3,1.3122]
[1725046391653,18.6712991,136.33,136.3,4.9806]
[1725046391850,18.6712991,136.33,136.27,12.612]
[1725046391851,18.605,136.33,136.27,12.612]
[1725046392159,14.9381,136.32,136.27,1.342]
[1725046392354,18.66289863,136.32,136.29,3.6686]
[1725046392553,18.70957147,136.32,136.29,3.71660915]
[1725046393050,0.04667284,136.32,136.31,11.27]
[1725046393650,0.04667284,136.32,136.31,14.9382]
[1725046394169,0.04667284,136.32,136.31,3.6682]
[1725046395553,0.04667284,136.32,136.3,1.3951]
[1725046396244,0.04667284,136.32,136.31,3.6682]
[1725046397751,0.04667284,136.32,136.29,0.04800915]
[1725046397956,3.71477284,136.32,136.29,0.04800915]
[1725046398359,3.71477284,136.32,136.29,3.71660915]
[1725046398655,0.04667284,136.32,136.29,0.04800915]